Workbook

Sheet Data_Standalone
A1: CONFIGURATION: Standalone wells | F1: RESULTS
A2: Reservoir | F2: base case | H2: psep + 66% | J2: psep - 66% | L2: dtub + 50% | N2: dtub - 50% | P2: k h + 50% | R2: k h - 50% | T2: pi + 36% | V2: pi - 36% | X2: TR - 22% | Z2: TR + 22% | AB2: Sg + 50%
A3: G | B3: 270000000000 | C3: [Sm3] | F3: RF | G3: qpp_n | H3: RF | I3: qpp_n | J3: RF | K3: qpp_n | L3: RF | M3: qpp_n | N3: RF | O3: qpp_n | P3: RF | Q3: qpp_n | R3: RF | S3: qpp_n | T3: RF | U3: qpp_n | V3: RF | W3: qpp_n | X3: RF | Y3: qpp_n | Z3: RF | AA3: qpp_n | AB3: RF | AC3: qpp_n
A4: n | B4: 1 | C4: [-] | F4: [-] | G4: [-] | H4: [-] | I4: [-] | J4: [-] | K4: [-] | L4: [-] | M4: [-] | N4: [-] | O4: [-] | P4: [-] | Q4: [-] | R4: [-] | S4: [-] | T4: [-] | U4: [-] | V4: [-] | W4: [-] | X4: [-] | Y4: [-] | Z4: [-] | AA4: [-] | AB4: [-] | AC4: [-]
A5: pi | B5: =(1)*276 -> 276 | C5: [bara] | F5: 0 | G5: 1 | H5: 0 | I5: 1 | J5: 0 | K5: 1 | L5: 0 | M5: 1 | N5: 0 | O5: 1 | P5: 0 | Q5: 1 | R5: 0 | S5: 1 | T5: 0 | U5: 1 | V5: 0 | W5: 1 | X5: 0 | Y5: 1 | Z5: 0 | AA5: 1 | AB5: 0 | AC5: 1
A6: TR | B6: 90 | C6: [C] | F6: 0.07817145824 | G6: 0.901550247 | H6: 0.07817145824 | I6: 0.8970999332 | J6: 0.07817145824 | K6: 0.9028937134 | L6: 0.07817145824 | M6: 0.9000570258 | N6: 0.07817145824 | O6: 0.9081473759 | P6: 0.07817145824 | Q6: 0.9033393299 | R6: 0.07817145824 | S6: 0.8950012228 | T6: 0.06629588792 | U6: 0.9063986064 | V6: 0.08960220211 | W6: 0.8915925808 | X6: 0.07660548827 | Y6: 0.9023716654 | Z6: 0.07920807537 | AA6: 0.9000375597 | AB6: 0.06757446083 | AC6: 0.9042702158
A7: Sg | B7: 0.5 | C7: [-] | F7: 0.1608627328 | G7: 0.8020256603 | H7: 0.1608627328 | I7: 0.7933367504 | J7: 0.1608627328 | K7: 0.8050436797 | L7: 0.1608627328 | M7: 0.7993372469 | N7: 0.1608627328 | O7: 0.8145276712 | P7: 0.1608627328 | Q7: 0.8058651257 | R7: 0.1608627328 | S7: 0.7888088459 | T7: 0.1386003801 | U7: 0.8114657628 | V7: 0.1807033183 | W7: 0.7825653496 | X7: 0.1584547501 | Y7: 0.8037661124 | Z7: 0.1623896986 | AA7: 0.7991714187 | AB7: 0.1427077146 | AC7: 0.8075916783
A8: Well | F8: 0.2478113781 | G8: 0.7014717249 | H8: 0.2478113781 | I8: 0.6884575977 | J8: 0.2478113781 | K8: 0.7065375198 | L8: 0.2478113781 | M8: 0.6978608142 | N8: 0.2478113781 | O8: 0.7192851766 | P8: 0.2478113781 | Q8: 0.7076001406 | R8: 0.2478113781 | S8: 0.681566159 | T8: 0.2173697347 | U8: 0.7152176213 | V8: 0.2728924079 | W8: 0.6729266416 | X8: 0.2453106474 | Y8: 0.7042115186 | Z8: 0.2492946863 | AA8: 0.6974786653 | AB8: 0.2258696777 | AC8: 0.7099448438
A9: skin | B9: 3 | C9: [-] | F9: 0.3385085201 | G9: 0.5999235584 | H9: 0.3385085201 | I9: 0.5820825254 | J9: 0.3385085201 | K9: 0.6074839728 | L9: 0.3385085201 | M9: 0.5956069134 | N9: 0.3385085201 | O9: 0.6225882365 | P9: 0.3385085201 | Q9: 0.6085312909 | R9: 0.3385085201 | S9: 0.5734785178 | T9: 0.3028087691 | U9: 0.6176998352 | V9: 0.3657335676 | W9: 0.5625457892 | X9: 0.3365908808 | Y9: 0.6036527532 | Z9: 0.3394916301 | AA9: 0.5950061625 | AB9: 0.3168968541 | AC9: 0.6111697114
A10: external radius, re | B10: 453.85 | C10: [m] | F10: 0.4321935713 | G10: 0.4974390801 | H10: 0.4321935713 | I10: 0.4736567193 | J10: 0.4321935713 | K10: 0.508078057 | L10: 0.4321935713 | M10: 0.4925535161 | N10: 0.4321935713 | O10: 0.5245807056 | P10: 0.4321935713 | Q10: 0.5086282018 | R10: 0.4321935713 | S10: 0.4649152888 | T10: 0.3946850735 | U10: 0.5189502382 | V10: 0.4587848228 | W10: 0.4513214919 | X10: 0.431345624 | Y10: 0.5020764485 | Z10: 0.4323673145 | AA10: 0.4918037063 | AB10: 0.4146453889 | AC10: 0.5110202859
A11: wellbore radius | B11: 0.11 | C11: [m] | F11: 0.5278958601 | G11: 0.3939702726 | H11: 0.5278958601 | I11: 0.3620750491 | J11: 0.5278958601 | K11: 0.4085421568 | L11: 0.5278958601 | M11: 0.3886452158 | N11: 0.5278958601 | O11: 0.4252773526 | P11: 0.5278958601 | Q11: 0.4076843665 | R11: 0.5278958601 | S11: 0.3564816162 | T11: 0.4921551789 | U11: 0.4190069128 | V11: 0.5516166956 | W11: 0.3388782403 | X11: 0.5283168035 | Y11: 0.3993566262 | Z11: 0.5271546095 | AA11: 0.3878821691 | AB11: 0.516874066 | AC11: 0.4090871665
A12: kh | B12: =1*2030 -> 2030 | C12: [md m] | F12: 0.6245218518 | G12: 0.2894001777 | H12: 0.6245218518 | I12: 0.2450124009 | J12: 0.6245218518 | K12: 0.3093352235 | L12: 0.6245218518 | M12: 0.2838042784 | N12: 0.6245218518 | O12: 0.32436625 | P12: 0.6245218518 | Q12: 0.3052789138 | R12: 0.6245218518 | S12: 0.2493073408 | T12: 0.5937074429 | U12: 0.3178708549 | V12: 0.6438283089 | W12: 0.2245006765 | X12: 0.6260795234 | Y12: 0.2952104727 | Z12: 0.6229881286 | AA12: 0.283213015 | AB12: 0.6205858679 | AC12: 0.3047342022
A13: Field | F13: 0.7209674037 | G13: 0.1831863778 | H13: 0.7209674037 | I13: 0.115206783 | J13: 0.7209674037 | K13: 0.2112605592 | L13: 0.7209674037 | M13: 0.1777139574 | N13: 0.7209674037 | O13: 0.2203218673 | P13: 0.7209674037 | Q13: 0.2000801986 | R13: 0.7209674037 | S13: 0.1455418459 | T13: 0.6973176156 | U13: 0.2153680723 | V13: 0.7350594843 | W13: 0.1062459151 | X13: 0.7232244286 | Y13: 0.1887972073 | Z13: 0.7189771247 | AA13: 0.1774958557 | AB13: 0.7227379458 | AC13: 0.1962044825
A14: psep | B14: =(1)*30 -> 30 | C14: bara | F14: 0.8736212283 | G14: 0 | H14: 0.786455061 | I14: 0 | J14: 0.9584804096 | K14: 0 | L14: 0.8737816878 | M14: 0 | N14: 0.8736212283 | O14: 0 | P14: 0.8736212283 | Q14: 0 | R14: 0.8736212283 | S14: 0 | T14: 0.9001799453 | U14: 0 | V14: 0.8100088946 | W14: 0 | X14: 0.8749350756 | Y14: 0 | Z14: 0.8725799472 | AA14: 0 | AB14: 0.8674984955 | AC14: 0
A15: Nw | B15: 5 | C15: [-]
A16: Tubing | F16: for RF=0.625
A17: Tubing TVD | B17: 3000 | C17: [m] | F17: max dev | G17: [%] | H17: =ABS(G12-O12)*100/G12 -> 12.0822567
A18: Internal Diameter | B18: =0.15*1 -> 0.15 | C18: [m] | F18: min dev | G18: [%] | H18: =ABS(G12-K12)*100/G12 -> 6.888401393 | M18: Instructions to solve
A19: A | B19: =0.25*PI()*B18^2 -> 0.01767145868 | C19: [m2] | M19: ="1. Provide a suitable seed in column D (e.g. 5 bara less than pR)" -> 1. Provide a suitable seed in column D (e.g. 5 bara less than pR)
A20: L | B20: 3000 | C20: [m] | M20: ="2. click solve all to find maximum rates" -> 2. click solve all to find maximum rates
A21: Twh | B21: 70 | C21: [C] | M21: ="3. copy column L to G (values only). If psep or pwh change significantly, repeat from step 2." -> 3. copy column L to G (values only). If psep or pwh change significantly, repeat from step 2.
A22: Friction factor | B22: =ff($B$18) -> 0.01177731479 | C22: [-]
A23: Sound speed at wh | B23: =SQRT(k_const(B7)*8314*(B21+273.15)/(B7*28.93)) -> 509.369831 | C23: [m/s]
A24: Flowline | I24: From: | J24: =ROW(A35) -> 35
A25: L | B25: 10000 | C25: [m] | I25: To: | J25: =ROW(A44) -> 44
A26: Tsep | B26: 60 | C26: [C]
A27: Internal Diameter | B27: =6*25.4/1000 -> 0.1524 | C27: [m]
A28: A | B28: =0.25*PI()*B27^2 -> 0.01824146925 | C28: [m2]
A29: Friction factor | B29: =ff($B$27) -> 0.01173551337 | C29: [-]
A30: Zsep | B30: =ZfacStanding($B$14,$B$26,$B$7,2) -> 0.9713859375 | C30: [-]
A31: Sound speed at sep | B31: =SQRT(k_const(B7)*8314*(B26+273.15)/(B7*28.93)) -> 501.8929856 | C31: [m/s]
D32: Guess (solver) | G32: Guess (manual) | L32: 2. Paste to G
A33: pR | B33: RF | C33: ZR | D33: pwf | E33: qwell | F33: Zwf | G33: pwh | H33: Zwh | I33: Zav_Tub | J33: S | K33: CT | L33: pwh | M33: Mch at wh | N33: Cflow | O33: psep | P33: Mch at sep | Q33: qfield | R33: qpp_n
A34: [bara] | B34: [-] | C34: [-] | D34: [bara] | E34: [Sm3/d] | F34: [-] | G34: [bara] | H34: [-] | I34: [-] | J34: [-] | K34: Sm3/bar | L34: [bara] | M34: [-] | N34: Sm3/bar | O34: [bara] | P34: [-] | Q34: [Sm3/d] | R34: [-]
A35: =$B$5 -> 276 | B35: =MBgastank_RF($A$35,$C$35,C35,A35) -> 0 | C35: =ZfacStanding(A35,$B$6,$B$7,2) -> 0.9794910234 | D35: 241.3447825 | E35: =iprppgas_qg($B$12,$B$6+273.15,$B$10,$B$11,$B$9,m_function(A35,$B$6,$B$7),m_function(D35,$B$6,$B$7)) -> 3949405.259 | F35: =ZfacStanding(D35,$B$6,$B$7,2) -> 0.9614653623 | G35: 182.5425764 | H35: =ZfacStanding(G35,$B$21,$B$7,2) -> 0.9197705946 | I35: =(H35+F35)*0.5 -> 0.9406179784 | J35: =s($B$7,(($B$21+$B$6)*0.5)+273.15,I35,$B$17) -> 0.3086967899 | K35: =Cflowconst($B$18,$B$7,$B$22,I35,(($B$21+$B$6)*0.5)+273.15,$B$20,J35) -> 40631.98082 | L35: =Tubingp2(K35,J35,D35,E35) -> 182.5631133 | M35: =(Bg(G35,$B$21,H35,2)*E35/($B$19*24*3600))/$B$23 -> 0.0308153052 | N35: =Cflowconst($B$27,$B$7,$B$29,(H35+$B$30)*0.5,(($B$26+$B$21)*0.5)+273.15,$B$25,0) -> 21931.22954 | O35: =linep2(N35,L35,E35) -> 30.00000699 | P35: =(Bg(O35,$B$26,$B$30,2)*E35/($B$28*24*3600))/$B$31 -> 0.1890218789 | Q35: =E35*$B$15 -> 19747026.3 | R35: =Q35/$Q$35 -> 1
A36: =A35+(-$A$35/11) -> 250.9090909 | B36: =MBgastank_RF($A$35,$C$35,C36,A36) -> 0.07817145824 | C36: =ZfacStanding(A36,$B$6,$B$7,2) -> 0.9659566227 | D36: 218.0083256 | E36: =iprppgas_qg($B$12,$B$6+273.15,$B$10,$B$11,$B$9,m_function(A36,$B$6,$B$7),m_function(D36,$B$6,$B$7)) -> 3559215.271 | F36: =ZfacStanding(D36,$B$6,$B$7,2) -> 0.9522153919 | G36: 164.9890294 | H36: 0.9184751592 | I36: =(H36+F36)*0.5 -> 0.9353452755 | J36: 0.3104369671 | K36: 40763.16142 | L36: =Tubingp2(K36,J36,D36,E36) -> 164.9846776 | M36: =(Bg(G36,$B$21,H36,2)*E36/($B$19*24*3600))/$B$23 -> 0.03068216714 | N36: 21938.74481 | O36: =linep2(N36,L36,E36) -> 29.99999936 | P36: =(Bg(O36,$B$26,$B$30,2)*E36/($B$28*24*3600))/$B$31 -> 0.170347099 | Q36: =E36*$B$15 -> 17796076.35 | R36: =Q36/$Q$35 -> 0.9012028487
A37: =A36+(-$A$35/11) -> 225.8181818 | B37: 0.1608627328 | C37: 0.9550305746 | D37: 194.5939125 | E37: =iprppgas_qg($B$12,$B$6+273.15,$B$10,$B$11,$B$9,m_function(A37,$B$6,$B$7),m_function(D37,$B$6,$B$7)) -> 3165345.611 | F37: 0.9455750406 | G37: 147.4160097 | H37: 0.9192828381 | I37: 0.9324289393 | J37: 0.3114079135 | K37: 40836.25718 | L37: 147.3971646 | M37: 0.0305664544 | N37: 21934.05828 | O37: 29.99999733 | P37: 0.1514961691 | Q37: 15826728.06 | R37: 0.8014739951
A38: 200.7272727 | B38: =MBgastank_RF($A$35,$C$35,C38,A38) -> 0.2478113781 | C38: 0.9470458436 | D38: 171.1093013 | E38: =iprppgas_qg($B$12,$B$6+273.15,$B$10,$B$11,$B$9,m_function(A38,$B$6,$B$7),m_function(D38,$B$6,$B$7)) -> 2767904.085 | F38: 0.9417838204 | G38: 129.8280745 | H38: 0.9222086146 | I38: 0.9319962175 | J38: 0.3115524989 | K38: 40847.13605 | L38: 129.8040022 | M38: 0.0304460547 | N38: 21917.10667 | O38: 29.99998679 | P38: 0.1324743217 | Q38: 13839520.42 | R38: 0.7008407349
A39: 175.6363636 | B39: 0.3385085201 | C39: 0.9422834434 | D39: 147.5769217 | E39: =iprppgas_qg($B$12,$B$6+273.15,$B$10,$B$11,$B$9,m_function(A39,$B$6,$B$7),m_function(D39,$B$6,$B$7)) -> 2366933.236 | F39: 0.9410035074 | G39: 112.2436088 | H39: 0.9272097859 | I39: 0.9341066467 | J39: 0.3108486076 | K39: 40794.15945 | L39: 112.2215368 | M39: 0.03027762608 | N39: 21888.22124 | O39: 29.99994658 | P39: 0.1132836564 | Q39: 11834666.18 | R39: 0.5993138412
A40: 150.5454545 | B40: 0.4321935713 | C40: 0.9409330433 | D40: 124.0615315 | E40: =iprppgas_qg($B$12,$B$6+273.15,$B$10,$B$11,$B$9,m_function(A40,$B$6,$B$7),m_function(D40,$B$6,$B$7)) -> 1962547.591 | F40: 0.943280748 | G40: 94.71939378 | H40: 0.934171591 | I40: 0.9387261695 | J40: 0.3093189046 | K40: 40678.90387 | L40: 94.70375504 | M40: 0.02997280382 | N40: 21848.20121 | O40: 29.99999869 | P40: 0.09392921495 | Q40: 9812737.956 | R40: 0.4969223116
A41: 125.4545455 | B41: 0.5278958601 | C41: 0.9430614028 | D41: 100.6869597 | E41: =iprppgas_qg($B$12,$B$6+273.15,$B$10,$B$11,$B$9,m_function(A41,$B$6,$B$7),m_function(D41,$B$6,$B$7)) -> 1554430.93 | F41: 0.9485075879 | G41: 77.37087822 | H41: 0.9428872591 | I41: 0.9456974235 | J41: 0.3070387455 | K41: 40506.78102 | L41: 77.36296187 | M41: 0.02933412229 | N41: 21798.40714 | O41: 29.99999968 | P41: 0.07439639826 | Q41: 7772154.652 | R41: 0.393586079
A42: 100.3636364 | B42: 0.6245218518 | C42: 0.9485999536 | D42: 77.77510021 | E42: =iprppgas_qg($B$12,$B$6+273.15,$B$10,$B$11,$B$9,m_function(A42,$B$6,$B$7),m_function(D42,$B$6,$B$7)) -> 1142002.816 | F42: 0.9563469408 | G42: 60.49233431 | H42: 0.9529720652 | I42: 0.954659503 | J42: 0.3041563506 | K42: 40288.63447 | L42: 60.4907301 | M42: 0.02785905811 | N42: 21741.21365 | O42: 30.00054364 | P42: 0.05465624372 | Q42: 5710014.078 | R42: 0.2891581746
A43: 75.27272727 | B43: 0.7209674037 | C43: 0.9573573807 | D43: 56.20427452 | E43: =iprppgas_qg($B$12,$B$6+273.15,$B$10,$B$11,$B$9,m_function(A43,$B$6,$B$7),m_function(D43,$B$6,$B$7)) -> 722997.2928 | F43: 0.9659954558 | G43: 44.85427332 | H43: 0.9636046323 | I43: 0.9648000441 | J43: 0.3009595121 | K43: 40045.94293 | L43: 44.85518366 | M43: 0.02405199767 | N43: 21681.39854 | O43: 30.00004903 | P43: 0.03460321395 | Q43: 3614986.464 | R43: 0.1830648529
A44: =D44 -> 34.81054444 | B44: 0.8736223296 | C44: 0.9775339474 | D44: 34.81054444 | E44: 0 | F44: 0.9775339474 | G44: 29.99974475 | H44: 0.9747481228 | I44: 0.9761410351 | J44: 0.2974629076 | K44: 39779.57705 | L44: =Tubingp2_noflow(J44,D44) -> 29.9997452 | M44: 0 | N44: 21619.23599 | O44: =L44 -> 29.9997452 | P44: 0 | Q44: 0 | R44: 0

Sheet Data_IPR_only
A1: CONFIGURATION: Standalone wells | F1: RESULTS
A2: Reservoir | F2: IPR only, pwf = 30 bara | H2: IPR only, pwf = 60 bara | J2: IPR only, pwf = 90 bara
A3: G | B3: 270000000000 | C3: [Sm3] | F3: RF | G3: qpp_n | H3: RF | I3: qpp_n | J3: RF | K3: qpp_n
A4: n | B4: 1 | C4: [-] | F4: [-] | G4: [-] | H4: [-] | I4: [-] | J4: [-] | K4: [-]
A5: pi | B5: 276 | C5: [bara] | F5: 0 | G5: 1 | H5: 0 | I5: 1 | J5: 0 | K5: 1
A6: TR | B6: 90 | C6: [C] | F6: 0.0862397314 | G6: 0.8312026811 | H6: 0.07148254993 | I6: 0.8525423571 | J6: 0.07148254993 | K6: 0.8411457833
A7: Sg | B7: 0.5 | C7: [-] | F7: 0.1779244513 | G7: 0.6719797441 | H7: 0.1467752084 | I7: 0.7118111127 | J7: 0.1467752084 | K7: 0.6895378288
A8: Well | F8: 0.2746568357 | G8: 0.524276548 | H8: 0.2256985054 | I8: 0.5789404298 | J8: 0.2256985054 | K8: 0.5463979559
A9: skin | B9: 3 | C9: [-] | F9: 0.3756743967 | G9: 0.3902133198 | H9: 0.3079016515 | I9: 0.4551588926 | J9: 0.3079016515 | K9: 0.4130497025
A10: external radius, re | B10: 453.85 | C10: [m] | F10: 0.4798592937 | G10: 0.2720165162 | H10: 0.3928533451 | I10: 0.3418057997 | J10: 0.3928533451 | K10: 0.2909358776
A11: wellbore radius | B11: 0.11 | C11: [m] | F11: 0.5858323778 | G11: 0.171850477 | H11: 0.4798592937 | I11: 0.2402136484 | J11: 0.4798592937 | K11: 0.1814919634
A12: kh | B12: =1*2030 -> 2030 | C12: [md m] | F12: 0.6921154873 | G12: 0.09172671979 | H12: 0.5681088249 | I12: 0.1516916004 | J12: 0.5681088249 | K12: 0.08612830286
A13: Field | F13: 0.7973106544 | G13: 0.03331777681 | H13: 0.6567430793 | I13: 0.07748182045 | J13: 0.6567430793 | K13: 0.006183064124
A14: psep | B14: =(1)*30 -> 30 | C14: bara | F14: 0.891402675 | G14: 0 | H14: 0.7791490516 | I14: 0 | J14: 0.6644406881 | K14: 0
A15: Nw | B15: 5 | C15: [-]
A16: Tubing
A17: Tubing TVD | B17: 3000 | C17: [m]
A18: Internal Diameter | B18: =0.15*1 -> 0.15 | C18: [m]
A19: A | B19: =0.25*PI()*B18^2 -> 0.01767145868 | C19: [m2]
A20: L | B20: 3000 | C20: [m]
A21: Twh | B21: 70 | C21: [C]
A22: Friction factor | B22: =ff($B$18) -> 0.01177731479 | C22: [-]
A23: Sound speed at wh | B23: =SQRT(k_const(B7)*8314*(B21+273.15)/(B7*28.93)) -> 509.369831 | C23: [m/s]
A24: Flowline
A25: L | B25: 10000 | C25: [m]
A26: Tsep | B26: 60 | C26: [C]
A27: Internal Diameter | B27: =6*25.4/1000 -> 0.1524 | C27: [m]
A28: A | B28: =0.25*PI()*B27^2 -> 0.01824146925 | C28: [m2]
A29: Friction factor | B29: =ff($B$27) -> 0.01173551337 | C29: [-]
A30: Zsep | B30: =ZfacStanding($B$14,$B$26,$B$7,2) -> 0.9713859375 | C30: [-]
A31: Sound speed at sep | B31: =SQRT(k_const(B7)*8314*(B26+273.15)/(B7*28.93)) -> 501.8929856 | C31: [m/s]
A33: pR | B33: RF | C33: ZR | D33: pwf | E33: qwell | F33: qfield | G33: qpp_n
A34: [bara] | B34: [-] | C34: [-] | D34: [bara] | E34: [Sm3/d] | F34: [Sm3/d] | G34: [-]
A35: =$B$5 -> 276 | B35: =MBgastank_RF($A$35,$C$35,C35,A35) -> 0 | C35: =ZfacStanding(A35,$B$6,$B$7,2) -> 0.9794910234 | D35: 30 | E35: =iprppgas_qg($B$12,$B$6+273.15,$B$10,$B$11,$B$9,m_function(A35,$B$6,$B$7),m_function(D35,$B$6,$B$7)) -> 18763217.16 | F35: =E35*$B$15 -> 93816085.81 | G35: =F35/$F$35 -> 1
A36: =A35+(-$A$35/12) -> 253 | B36: =MBgastank_RF($A$35,$C$35,C36,A36) -> 0.07148254993 | C36: =ZfacStanding(A36,$B$6,$B$7,2) -> 0.966989658 | D36: 30 | E36: =iprppgas_qg($B$12,$B$6+273.15,$B$10,$B$11,$B$9,m_function(A36,$B$6,$B$7),m_function(D36,$B$6,$B$7)) -> 16112248.27 | F36: 80561241.37 | G36: 0.8587145869
A37: =A36+(-$A$35/12) -> 230 | B37: 0.1467752084 | C37: 0.9566558867 | D37: 30 | E37: =iprppgas_qg($B$12,$B$6+273.15,$B$10,$B$11,$B$9,m_function(A37,$B$6,$B$7),m_function(D37,$B$6,$B$7)) -> 13582205.45 | F37: 67911027.27 | G37: 0.7238740209
A38: 207 | B38: 0.2256985054 | C38: 0.9487496443 | D38: 30 | E38: =iprppgas_qg($B$12,$B$6+273.15,$B$10,$B$11,$B$9,m_function(A38,$B$6,$B$7),m_function(D38,$B$6,$B$7)) -> 11193478.5 | F38: 55967392.48 | G38: 0.596564992
A39: 184 | B39: 0.3079016515 | C39: 0.9434988785 | D39: 30 | E39: =iprppgas_qg($B$12,$B$6+273.15,$B$10,$B$11,$B$9,m_function(A39,$B$6,$B$7),m_function(D39,$B$6,$B$7)) -> 8968154.683 | F39: 44840773.42 | G39: 0.4779646585
A40: 161 | B40: 0.3928533451 | C40: 0.9410737242 | D40: 30 | E40: =iprppgas_qg($B$12,$B$6+273.15,$B$10,$B$11,$B$9,m_function(A40,$B$6,$B$7),m_function(D40,$B$6,$B$7)) -> 6930311.702 | F40: 34651558.51 | G40: 0.3693562592
A41: 138 | B41: 0.4798592937 | C41: 0.9415635151 | D41: 30 | E41: =iprppgas_qg($B$12,$B$6+273.15,$B$10,$B$11,$B$9,m_function(A41,$B$6,$B$7),m_function(D41,$B$6,$B$7)) -> 5103904.965 | F41: 25519524.82 | G41: 0.2720165162
A42: 115 | B42: 0.5681088249 | C42: 0.9449631836 | D42: 30 | E42: =iprppgas_qg($B$12,$B$6+273.15,$B$10,$B$11,$B$9,m_function(A42,$B$6,$B$7),m_function(D42,$B$6,$B$7)) -> 3512470.362 | F42: 17562351.81 | G42: 0.1871997926
A43: 92 | B43: 0.6567430793 | C43: 0.9511738529 | D43: 30 | E43: =iprppgas_qg($B$12,$B$6+273.15,$B$10,$B$11,$B$9,m_function(A43,$B$6,$B$7),m_function(D43,$B$6,$B$7)) -> 2178339.326 | F43: 10891696.63 | G43: 0.1160962594
A44: =D44 -> 30 | B44: 0.891402675 | C44: 0.9803778827 | D44: 30 | E44: =iprppgas_qg($B$12,$B$6+273.15,$B$10,$B$11,$B$9,m_function(A44,$B$6,$B$7),m_function(D44,$B$6,$B$7)) -> 0 | F44: 0 | G44: 0

Sheet Data_IPR_changing_pwf
A1: CONFIGURATION: Standalone wells | F1: RESULTS
A2: Reservoir | F2: IPR only, pwf = 30 bara | H2: IPR only, pwf = 60 bara | J2: IPR only, pwf = 90 bara
A3: G | B3: 270000000000 | C3: [Sm3] | F3: RF | G3: qpp_n | H3: RF | I3: qpp_n | J3: RF | K3: qpp_n
A4: n | B4: 1 | C4: [-] | F4: [-] | G4: [-] | H4: [-] | I4: [-] | J4: [-] | K4: [-]
A5: pi | B5: 276 | C5: [bara] | F5: 0 | G5: 1 | H5: 0 | I5: 1 | J5: 0 | K5: 1
A6: TR | B6: 90 | C6: [C] | F6: 0.0862397314 | G6: 0.8312026811 | H6: 0.07148254993 | I6: 0.8525423571 | J6: 0.07148254993 | K6: 0.8411457833
A7: Sg | B7: 0.5 | C7: [-] | F7: 0.1779244513 | G7: 0.6719797441 | H7: 0.1467752084 | I7: 0.7118111127 | J7: 0.1467752084 | K7: 0.6895378288
A8: Well | F8: 0.2746568357 | G8: 0.524276548 | H8: 0.2256985054 | I8: 0.5789404298 | J8: 0.2256985054 | K8: 0.5463979559
A9: skin | B9: 3 | C9: [-] | F9: 0.3756743967 | G9: 0.3902133198 | H9: 0.3079016515 | I9: 0.4551588926 | J9: 0.3079016515 | K9: 0.4130497025
A10: external radius, re | B10: 453.85 | C10: [m] | F10: 0.4798592937 | G10: 0.2720165162 | H10: 0.3928533451 | I10: 0.3418057997 | J10: 0.3928533451 | K10: 0.2909358776
A11: wellbore radius | B11: 0.11 | C11: [m] | F11: 0.5858323778 | G11: 0.171850477 | H11: 0.4798592937 | I11: 0.2402136484 | J11: 0.4798592937 | K11: 0.1814919634
A12: kh | B12: =1*2030 -> 2030 | C12: [md m] | F12: 0.6921154873 | G12: 0.09172671979 | H12: 0.5681088249 | I12: 0.1516916004 | J12: 0.5681088249 | K12: 0.08612830286
A13: Field | F13: 0.7973106544 | G13: 0.03331777681 | H13: 0.6567430793 | I13: 0.07748182045 | J13: 0.6567430793 | K13: 0.006183064124
A14: psep | B14: =(1)*30 -> 30 | C14: bara | F14: 0.891402675 | G14: 0 | H14: 0.7791490516 | I14: 0 | J14: 0.6644406881 | K14: 0
A15: Nw | B15: 5 | C15: [-]
A16: Tubing
A17: Tubing TVD | B17: 3000 | C17: [m]
A18: Internal Diameter | B18: =0.15*1 -> 0.15 | C18: [m]
A19: A | B19: =0.25*PI()*B18^2 -> 0.01767145868 | C19: [m2]
A20: L | B20: 3000 | C20: [m]
A21: Twh | B21: 70 | C21: [C]
A22: Friction factor | B22: =ff($B$18) -> 0.01177731479 | C22: [-]
A23: Sound speed at wh | B23: =SQRT(k_const(B7)*8314*(B21+273.15)/(B7*28.93)) -> 509.369831 | C23: [m/s]
A24: Flowline | I24: min value | J24: =ROW(A35) -> 35
A25: L | B25: 10000 | C25: [m] | I25: max value | J25: =ROW(A44)-1 -> 43
A26: Tsep | B26: 60 | C26: [C]
A27: Internal Diameter | B27: =6*25.4/1000 -> 0.1524 | C27: [m]
A28: A | B28: =0.25*PI()*B27^2 -> 0.01824146925 | C28: [m2]
A29: Friction factor | B29: =ff($B$27) -> 0.01173551337 | C29: [-]
A30: Zsep | B30: =ZfacStanding($B$14,$B$26,$B$7,2) -> 0.9713859375 | C30: [-]
A31: Sound speed at sep | B31: =SQRT(k_const(B7)*8314*(B26+273.15)/(B7*28.93)) -> 501.8929856 | C31: [m/s]
A33: pR | B33: RF | C33: ZR | D33: pwf | E33: qwell | F33: qfield | G33: qpp_n | H33: qfield_basecase
A34: [bara] | B34: [-] | C34: [-] | D34: [bara] | E34: [Sm3/d] | F34: [Sm3/d] | G34: [-] | H34: [Sm3/d]
A35: 276 | B35: =MBgastank_RF($A$35,$C$35,C35,A35) -> 0 | C35: =ZfacStanding(A35,$B$6,$B$7,2) -> 0.9794910234 | D35: 241.3447806 | E35: =iprppgas_qg($B$12,$B$6+273.15,$B$10,$B$11,$B$9,m_function(A35,$B$6,$B$7),m_function(D35,$B$6,$B$7)) -> 3949405.472 | F35: =E35*$B$15 -> 19747027.36 | G35: =F35/$F$35 -> 1 | H35: 19747027.36
A36: 250.9090909 | B36: =MBgastank_RF($A$35,$C$35,C36,A36) -> 0.07817145824 | C36: =ZfacStanding(A36,$B$6,$B$7,2) -> 0.9659566227 | D36: 218.0083264 | E36: =iprppgas_qg($B$12,$B$6+273.15,$B$10,$B$11,$B$9,m_function(A36,$B$6,$B$7),m_function(D36,$B$6,$B$7)) -> 3559215.184 | F36: 17796075.92 | G36: 0.9012027783 | H36: 17796075.92
A37: 225.8181818 | B37: 0.1608627328 | C37: 0.9550305746 | D37: 194.5938961 | E37: =iprppgas_qg($B$12,$B$6+273.15,$B$10,$B$11,$B$9,m_function(A37,$B$6,$B$7),m_function(D37,$B$6,$B$7)) -> 3165347.192 | F37: 15826735.96 | G37: 0.8014743521 | H37: 15826735.96
A38: 200.7272727 | B38: 0.2478113781 | C38: 0.9470458436 | D38: 171.1092515 | E38: =iprppgas_qg($B$12,$B$6+273.15,$B$10,$B$11,$B$9,m_function(A38,$B$6,$B$7),m_function(D38,$B$6,$B$7)) -> 2767908.468 | F38: 13839542.34 | G38: 0.7008418072 | H38: 13839542.34
A39: 175.6363636 | B39: 0.3385085201 | C39: 0.9422834434 | D39: 147.5768213 | E39: =iprppgas_qg($B$12,$B$6+273.15,$B$10,$B$11,$B$9,m_function(A39,$B$6,$B$7),m_function(D39,$B$6,$B$7)) -> 2366941.124 | F39: 11834705.62 | G39: 0.5993158061 | H39: 11834705.62
A40: 150.5454545 | B40: 0.4321935713 | C40: 0.9409330433 | D40: 124.0614205 | E40: =iprppgas_qg($B$12,$B$6+273.15,$B$10,$B$11,$B$9,m_function(A40,$B$6,$B$7),m_function(D40,$B$6,$B$7)) -> 1962555.142 | F40: 9812775.709 | G40: 0.4969241968 | H40: 9812775.709
A41: 125.4545455 | B41: 0.5278958601 | C41: 0.9430614028 | D41: 100.6868439 | E41: =iprppgas_qg($B$12,$B$6+273.15,$B$10,$B$11,$B$9,m_function(A41,$B$6,$B$7),m_function(D41,$B$6,$B$7)) -> 1554437.485 | F41: 7772187.426 | G41: 0.3935877175 | H41: 7772187.426
A42: 100.3636364 | B42: 0.6245218518 | C42: 0.9485999536 | D42: 77.77493142 | E42: =iprppgas_qg($B$12,$B$6+273.15,$B$10,$B$11,$B$9,m_function(A42,$B$6,$B$7),m_function(D42,$B$6,$B$7)) -> 1142010.333 | F42: 5710051.667 | G42: 0.2891600625 | H42: 5710051.667
A43: 75.27272727 | B43: 0.7209674037 | C43: 0.9573573807 | D43: 56.20424425 | E43: =iprppgas_qg($B$12,$B$6+273.15,$B$10,$B$11,$B$9,m_function(A43,$B$6,$B$7),m_function(D43,$B$6,$B$7)) -> 722998.2792 | F43: 3614991.396 | G43: 0.1830650928 | H43: 3614991.396
A44: 34.81084161 | B44: 0.8736212283 | C44: 0.9775337745 | D44: 34.8 | E44: =iprppgas_qg($B$12,$B$6+273.15,$B$10,$B$11,$B$9,m_function(A44,$B$6,$B$7),m_function(D44,$B$6,$B$7)) -> 220.3531765 | F44: 1101.765882 | G44: 5.579401205e-05 | H44: 0

Sheet Data_Network
A1: CONFIGURATION: Wells on network | F1: RESULTS
A2: Reservoir | E2: NAME | F2: network: 4 wells, 1 template | H2: network: 16 wells, 4 templates | J2: network: 16 wells, 16 templates
A3: G | B3: 270000000000 | C3: [Sm3] | E3: ID flowline[m] | F3: 0.2032 | H3: 0.2032 | J3: 0.1524
A4: n | B4: 1 | C4: [-] | E4: ID pipeline [m] | F4: 0.254 | H4: 0.508 | J4: 0.508
A5: pi | B5: 276 | C5: [bara] | F5: RF | G5: qpp_n | H5: RF | I5: qpp_n | J5: RF | K5: qpp_n
A6: TR | B6: 90 | C6: [C] | F6: [-] | G6: [-] | H6: [-] | I6: [-] | J6: [-] | K6: [-]
A7: Sg | B7: 0.5 | C7: [-] | F7: 0 | G7: 1 | H7: 0 | I7: 1 | J7: 0 | K7: 1
A8: Well | F8: 0.07817145824 | G8: 0.9027657379 | H8: 0.07817145824 | I8: 0.9037125656 | J8: 0.07817145824 | K8: 0.9034671313
A9: skin | B9: 3 | C9: [-] | F9: 0.1608627328 | G9: 0.8055190393 | H9: 0.1608627328 | I9: 0.8067649677 | J9: 0.1608627328 | K9: 0.8061810523
A10: external radius, re | B10: 453.85 | C10: [m] | F10: 0.2478113781 | G10: 0.7082423374 | H10: 0.2478113781 | I10: 0.7092487337 | J10: 0.2478113781 | K10: 0.7081913656
A11: wellbore radius | B11: 0.11 | C11: [m] | F11: 0.3385085201 | G11: 0.6108127121 | H11: 0.3385085201 | I11: 0.6111554059 | J11: 0.3385085201 | K11: 0.6095136462
A12: kh | B12: =1*2030 -> 2030 | C12: [md m] | F12: 0.4321935713 | G12: 0.5131277737 | H12: 0.4321935713 | I12: 0.5124744325 | J12: 0.4321935713 | K12: 0.5101406967
A13: Field | F13: 0.5278958601 | G13: 0.4149189445 | H13: 0.5278958601 | I13: 0.4130010388 | J13: 0.5278958601 | K13: 0.4099026076
A14: psep | B14: =(1)*30 -> 30 | C14: bara | F14: 0.6245218518 | G14: 0.3157572087 | H14: 0.6245218518 | I14: 0.3123056823 | J14: 0.6245218518 | K14: 0.3084667478
A15: Nwells per template | B15: 1 | C15: [-] | F15: 0.7209674037 | G15: 0.2144862897 | H15: 0.7209674037 | I15: 0.2091504446 | J15: 0.7209674037 | K15: 0.2049275696
A16: Ntemplates | B16: 16 | C16: [-] | F16: 0.8736212283 | G16: 0 | H16: 0.8736212283 | I16: 0 | J16: 0.8736212283 | K16: 0
A17: Tubing
A18: Tubing TVD | B18: 3000 | C18: [m] | F18: Deviation against base case
A19: Internal Diameter | B19: =0.15*1 -> 0.15 | C19: [m] | F19: at RF = 0.721
A20: A | B20: =0.25*PI()*B19^2 -> 0.01767145868 | C20: [m2] | F20: max dev (net) | G20: [%] | H20: =ABS(K15-Data_Standalone!G13)*100/Data_Standalone!G13 -> 11.86834525
A21: L | B21: 3000 | C21: [m] | M21: Instructions to solve
A22: Twh | B22: 70 | C22: [C] | M22: ="1. Provide a suitable seed in column D (e.g. 5 bara less than pR)" -> 1. Provide a suitable seed in column D (e.g. 5 bara less than pR)
A23: Friction factor | B23: =ff($B$19) -> 0.01177731479 | C23: [-] | M23: ="2. click solve all to find maximum rates" -> 2. click solve all to find maximum rates
A24: Sound speed at wh | B24: =SQRT(k_const(B7)*8314*(B22+273.15)/(B7*28.93)) -> 509.369831 | C24: [m/s] | I24: From: | J24: =ROW(A43) -> 43 | M24: ="3. copy column L to G and Q to N (values only). If psep, pwh or ppipeline_in change significantly, repeat from step 2." -> 3. copy column L to G and Q to N (values only). If psep, pwh or ppipeline_in change significantly, repeat from step 2.
A25: Flowline | I25: To: | J25: =ROW(A52) -> 52
A26: L | B26: 5000 | C26: [m]
A27: ID | B27: =6*25.4/1000 -> 0.1524 | C27: [m]
A28: Area | B28: =0.25*PI()*B27^2 -> 0.01824146925 | C28: [m2]
A29: Friction factor | B29: =ff($B$27) -> 0.01173551337 | C29: [-]
A30: Pipeline
A31: L | B31: 60000 | C31: [m]
A32: Tin | B32: 60 | C32: [C]
A33: Sound speed at pipein | B33: =SQRT(k_const(B7)*8314*(B32+273.15)/(B7*28.93)) -> 501.8929856 | C33: [m/s]
A34: Tsep | B34: 30 | C34: [C]
A35: Internal Diameter | B35: =20*25.4/1000 -> 0.508 | C35: [m]
A36: A | B36: =0.25*PI()*B35^2 -> 0.2026829916 | C36: [m2]
A37: Friction factor | B37: =ff($B$35) -> 0.008961428697 | C37: [-]
A38: Zsep | B38: =ZfacStanding($B$14,$B$34,$B$7,2) -> 0.9583281106 | C38: [-]
A39: Sound speed at sep | B39: =SQRT(k_const(B7)*8314*(B34+273.15)/(B7*28.93)) -> 478.7623649 | C39: [m/s]
D40: Guess (solver) | G40: Guess (manual) | L40: 2. Paste to G | M40: =MAX(M43:M52) -> 0.01758071913 | N40: Guess (manual) | Q40: 3. Paste to N | R40: =MAX(R43:R52) -> 0.01785894804 | U40: =MAX(U43:U52) -> 0.1659722822
A41: pR | B41: RF | C41: ZR | D41: pwf | E41: qwell | F41: Zwf | G41: pwh | H41: Zwh | I41: Zav_Tub | J41: S | K41: CT | L41: pwh | M41: Mch at wh | N41: ppipeline_in | O41: Z_pipeline_in | P41: Cflow | Q41: ppipeline_in | R41: Mch at pipein | S41: Cpipelines | T41: psep | U41: Mch at sep | V41: qfield | W41: qpp_n
A42: [bara] | B42: [-] | C42: [-] | D42: [bara] | E42: [Sm3/d] | F42: [-] | G42: [bara] | H42: [-] | I42: [-] | J42: [-] | K42: Sm3/bar | L42: [bara] | M42: [-] | N42: [bara] | O42: [-] | P42: Sm3/bar | Q42: [bara] | R42: [-] | S42: Sm3/bar | T42: [bara] | U42: [-] | V42: [Sm3/d] | W42: [-]
A43: =$B$5 -> 276 | B43: =MBgastank_RF($A$43,$C$43,C43,A43) -> 0 | C43: =ZfacStanding(A43,$B$6,$B$7,2) -> 0.9794910234 | D43: 253.8154021 | E43: =iprppgas_qg($B$12,$B$6+273.15,$B$10,$B$11,$B$9,m_function(A43,$B$6,$B$7),m_function(D43,$B$6,$B$7)) -> 2558956.758 | F43: =ZfacStanding(D43,$B$6,$B$7,2) -> 0.9673973837 | G43: 208.5876465 | H43: =ZfacStanding(G43,$B$22,$B$7,2) -> 0.9254284453 | I43: =(H43+F43)*0.5 -> 0.9464129145 | J43: =s($B$7,(($B$22+$B$6)*0.5)+273.15,I43,$B$18) -> 0.3068066232 | K43: =Cflowconst($B$19,$B$7,$B$23,I43,(($B$22+$B$6)*0.5)+273.15,$B$21,J43) -> 40489.23682 | L43: =Tubingp2(K43,J43,D43,E43) -> 208.3436657 | M43: =(Bg(G43,$B$22,H43,2)*E43/($B$20*24*3600))/$B$24 -> 0.01758071913 | N43: 191.0060559 | O43: =ZfacStanding(N43,$B$32,$B$7,2) -> 0.9071305073 | P43: =Cflowconst($B$27,$B$7,$B$29,(H43+O43)*0.5,(($B$32+$B$22)*0.5)+273.15,$B$26,0) -> 31507.41255 | Q43: =linep2(P43,G43,E43*$B$15) -> 192.1262762 | R43: =(Bg(Q43,$B$32,O43,2)*E43*$B$15/($B$28*24*3600))/$B$33 -> 0.01785894804 | S43: =Cflowconst($B$35,$B$7,$B$37,(O43+$B$38)*0.5,(($B$34+$B$32)*0.5)+273.15,$B$31,0) -> 215752.7296 | T43: =linep2(S43,Q43,V43) -> 30.0001135 | U43: =(Bg(T43,$B$34,$B$38,2)*V43/($B$36*24*3600))/$B$39 -> 0.1659722822 | V43: =E43*$B$15*$B$16 -> 40943308.13 | W43: =V43/$V$43 -> 1
A44: =A43+(-$A$43/11) -> 250.9090909 | B44: 0.07817145824 | C44: =ZfacStanding(A44,$B$6,$B$7,2) -> 0.9659566227 | D44: 229.839883 | E44: =iprppgas_qg($B$12,$B$6+273.15,$B$10,$B$11,$B$9,m_function(A44,$B$6,$B$7),m_function(D44,$B$6,$B$7)) -> 2311933.322 | F44: =ZfacStanding(D44,$B$6,$B$7,2) -> 0.9565921667 | G44: 188.7493856 | H44: 0.920721917 | I44: =(H44+F44)*0.5 -> 0.9386570418 | J44: 0.3093416845 | K44: 40680.6215 | L44: =Tubingp2(K44,J44,D44,E44) -> 188.523362 | M44: 0.01746375649 | N44: 172.9204161 | O44: 0.9050232916 | P44: 31566.15117 | Q44: =linep2(P44,G44,E44*$B$15) -> 173.9600561 | R44: =(Bg(Q44,$B$32,O44,2)*E44*$B$15/($B$28*24*3600))/$B$33 -> 0.0177785133 | S44: 215874.6897 | T44: 30.0000097 | U44: 0.1499510205 | V44: 36990933.14 | W44: 0.9034671313
A45: 225.8181818 | B45: 0.1608627328 | C45: 0.9550305746 | D45: 205.8067799 | E45: =iprppgas_qg($B$12,$B$6+273.15,$B$10,$B$11,$B$9,m_function(A45,$B$6,$B$7),m_function(D45,$B$6,$B$7)) -> 2062982.452 | F45: 0.9484101764 | G45: 168.9697718 | H45: 0.918586061 | I45: 0.9334981187 | J45: 0.3110512434 | K45: 40809.41406 | L45: 168.7545162 | M45: 0.01736703963 | N45: 154.8541869 | O45: 0.9053960423 | P45: 31581.40379 | Q45: 155.8323751 | R45: 0.01771684375 | S45: 215853.1008 | T45: 29.99939169 | U45: 0.1338069285 | V45: 33007719.24 | W45: 0.8061810523
A46: 200.7272727 | B46: 0.2478113781 | C46: 0.9470458436 | D46: 181.7164166 | E46: =iprppgas_qg($B$12,$B$6+273.15,$B$10,$B$11,$B$9,m_function(A46,$B$6,$B$7),m_function(D46,$B$6,$B$7)) -> 1812231.081 | F46: 0.9431295924 | G46: 149.2367988 | H46: 0.9191006861 | I46: 0.9311151393 | J46: 0.3118473089 | K46: 40869.31336 | L46: 149.0239108 | M46: 0.01728304132 | N46: 136.8035284 | O46: 0.908282953 | P46: 31551.99691 | Q46: 137.7413862 | R46: 0.01766364012 | S46: 215686.1164 | T46: 30.00003716 | U46: 0.1175404363 | V46: 28995697.3 | W46: 0.7081913656
A47: 175.6363636 | B47: 0.3385085201 | C47: 0.9422834434 | D47: 157.5750208 | E47: =iprppgas_qg($B$12,$B$6+273.15,$B$10,$B$11,$B$9,m_function(A47,$B$6,$B$7),m_function(D47,$B$6,$B$7)) -> 1559719.064 | F47: 0.9409609738 | G47: 129.5401281 | H47: 0.9222739733 | I47: 0.9316174736 | J47: 0.3116791588 | K47: 40856.66492 | L47: 129.3193361 | M47: 0.01719576255 | N47: 118.7705092 | O47: 0.913646246 | P47: 31478.5569 | Q47: 119.6895108 | R47: 0.01759860655 | S47: 215376.9195 | T47: 29.99928912 | U47: 0.1011651508 | V47: 24955505.03 | W47: 0.6095136462
A48: 150.5454545 | B48: 0.4321935713 | C48: 0.9409330433 | D48: 133.4140835 | E48: =iprppgas_qg($B$12,$B$6+273.15,$B$10,$B$11,$B$9,m_function(A48,$B$6,$B$7),m_function(D48,$B$6,$B$7)) -> 1305427.983 | F48: 0.9420109759 | G48: 109.890757 | H48: 0.9280321457 | I48: 0.9350215608 | J48: 0.3105444437 | K48: 40771.25601 | L48: 109.6475057 | M48: 0.01707159899 | N48: 100.7772627 | O48: 0.9213694841 | P48: 31363.6139 | Q48: 101.7032777 | R48: 0.01748081643 | S48: 214933.9973 | T48: 30.00000781 | U48: 0.08466951394 | V48: 20886847.74 | W48: 0.5101406967
A49: 125.4545455 | B49: 0.5278958601 | C49: 0.9430614028 | D49: 109.2855368 | E49: =iprppgas_qg($B$12,$B$6+273.15,$B$10,$B$11,$B$9,m_function(A49,$B$6,$B$7),m_function(D49,$B$6,$B$7)) -> 1048923.048 | F49: 0.9462495396 | G49: 90.32443479 | H49: 0.9362133369 | I49: 0.9412314383 | J49: 0.3084955928 | K49: 40616.79931 | L49: 90.03367669 | M49: 0.01683575617 | N49: 82.87152939 | O49: 0.9312554947 | P49: 31211.52837 | Q49: 83.83960323 | R49: 0.01722158746 | S49: 214371.0092 | T49: 30.00002523 | U49: 0.06803267144 | V49: 16782768.77 | W49: 0.4099026076
A50: 100.3636364 | B50: 0.6245218518 | C50: 0.9485999536 | D50: 85.34640286 | E50: =iprppgas_qg($B$12,$B$6+273.15,$B$10,$B$11,$B$9,m_function(A50,$B$6,$B$7),m_function(D50,$B$6,$B$7)) -> 789353.0691 | F50: 0.9534710802 | G50: 70.99042302 | H50: 0.9465210909 | I50: 0.9499960856 | J50: 0.3056494178 | K50: 40401.71237 | L50: 70.59751278 | M50: 0.0162975102 | N50: 65.20713867 | O50: 0.9429762441 | P50: 31029.05684 | Q50: 66.27585848 | R50: 0.01660070803 | S50: 213709.2337 | T50: 29.99987991 | U50: 0.05119732875 | V50: 12629649.11 | W50: 0.3084667478
A51: 75.27272727 | B51: 0.7209674037 | C51: 0.9573573807 | D51: 62.00796584 | E51: =iprppgas_qg($B$12,$B$6+273.15,$B$10,$B$11,$B$9,m_function(A51,$B$6,$B$7),m_function(D51,$B$6,$B$7)) -> 524400.7891 | F51: 0.9631948612 | G51: 52.35718207 | H51: 0.9583561033 | I51: 0.9607754822 | J51: 0.3022201918 | K51: 40141.74357 | L51: 51.68615878 | M51: 0.01486392185 | N51: 48.20833526 | O51: 0.9559171254 | P51: 30827.60275 | Q51: 49.5167521 | R51: 0.01496378113 | S51: 212985.639 | T51: 30.00001086 | U51: 0.03401241278 | V51: 8390412.626 | W51: 0.2049275696
A52: =D52 -> 34.81084161 | B52: 0.8736212283 | C52: 0.9775337745 | D52: 34.81084161 | E52: 0 | F52: 0.9775337745 | G52: 30.00000045 | H52: 0.9747479228 | I52: 0.9761408486 | J52: 0.2974629644 | K52: 39779.58138 | L52: =Tubingp2_noflow(J52,D52) -> 30.00000045 | M52: 0 | N52: 30.00000045 | O52: 0.9713859371 | P52: 30574.21832 | Q52: 30.00000045 | R52: 0 | S52: 212130.2625 | T52: 30.00000045 | U52: 0 | V52: 0 | W52: 0
